Cogmind - Beta 17.1 @@@ ROGUE MODE // 2026.09.13 @ 11:51:59 // Winter2019/RPGLIKE Player: obl-vn Result: Self-destructed Performance ------------- Evolutions (0) 0 Regions Visited (4) 800 Robots Destroyed (38) 190 Value Destroyed (890) 890 Prototype IDs (24) 480 Alien Tech Used (0) 0 Bonus (306) 306 TOTAL SCORE: 2666 Bonus ------- High Alert Combat Kills 6 Aligned with FarCom 300 Cogmind --------- Core Integrity 489/600 Matter 300/300 Energy 250/250 System Corruption 1% Temperature Cool (0) Movement Rolling (95) Ox1 Location -9/Mines Parts ------- > --- POWER (1) -------- Ion Engine > --- PROPULSION (1) --- Wheel > --- UTILITY (2) ------ Targeting Computer Hacking Suite > --- WEAPON (2) ------- Advanced Beam Cannon Advanced Beam Cannon > --- INVENTORY (1) ---- Rocket Launcher Peak State ------------ > --- POWER ------------ Ion Engine > --- PROPULSION ------- Wheel > --- UTILITY ---------- Targeting Computer Hacking Suite > --- WEAPON ----------- Advanced Beam Cannon Advanced Beam Cannon > --- INVENTORY -------- (None) [Rating: 12] Favorites ----------- Power Ion Engine Engine Ion Engine Propulsion Wheel Wheel Wheel Utility Targeting Computer Processor Targeting Computer Hackware Hacking Suite Protection Light Armor Plating Weapon Advanced Beam Cannon Energy Gun EM Pulse Gun Energy Cannon Advanced Beam Cannon Ballistic Gun Assault Rifle Build | -11 -10 -10 -10 -9 ------- Run | Yrd Mat Min Exi Min Slots Evolved 2 | 1 1 . . . Power . | . . . . . Propulsion . | . . . . . Utility 1 | . 1 . . . Weapon 1 | 1 . . . . Parts Attached 12 | 4 8 . . . Power 1 | 1 . . . . Engine 1 | 1 . . . . Core . | . . . . . Reactor . | . . . . . Propulsion 2 | 1 1 . . . Treads . | . . . . . Leg . | . . . . . Wheel 2 | 1 1 . . . Hover . | . . . . . Flight . | . . . . . Utility 4 | . 4 . . . Device . | . . . . . Storage . | . . . . . Processor 1 | . 1 . . . Hackware 1 | . 1 . . . Protection 2 | . 2 . . . Artifact . | . . . . . Weapon 5 | 2 3 . . . Energy Gun 2 | 1 1 . . . Energy Cannon 2 | . 2 . . . Ballistic Gun 1 | 1 . . . . Ballistic Cannon . | . . . . . Launcher . | . . . . . Special Weapon . | . . . . . Impact Weapon . | . . . . . Slashing Weapon . | . . . . . Piercing Weapon . | . . . . . Special Melee Weapon . | . . . . . Unidentified Prototypes 1 | . 1 . . . Corrupted Parts 1 | . 1 . . . System Corruption 1 | . 1 . . . Parts Lost . | . . . . . Power . | . . . . . Propulsion . | . . . . . Utility . | . . . . . Weapon . | . . . . . Highest Loss Streak . | . . . . . To Critical Strikes . | . . . . . Average Backups . | . . 1 1 1 Power . | . . . . . Propulsion . | . . . . . Utility . | . . . . . Weapon . | . . 1 1 1 Tool/Special . | . . . . . Unused Backups 2 | . . 1 . 1 Power . | . . . . . Propulsion . | . . . . . Utility . | . . . . . Weapon 2 | . . 1 . 1 Tool/Special . | . . . . . Average Slot Usage (%) 99 | . 98 100 100 100 Engine 17 | . 18 16 16 16 Wheel 17 | . 19 16 16 16 Processor 14 | . 13 16 16 16 Hackware 8 | . 3 16 16 16 Protection 3 | . 5 . . . Energy Gun 7 | . 12 . . . Energy Cannon 27 | . 23 33 33 33 Ballistic Gun 1 | . 1 . . . Peak Build Rating 12 | 4 12 12 12 12 Average Rating 9 | 2 8 12 12 12 On Entrance 8 | . 4 12 12 12 Avg Prop Armor Cover (%) . | . . . . . Naked Turns . | . . . . . Heaviest Build 13 | 9 13 13 13 13 Greatest Support 10 | 10 10 10 10 10 Greatest Overweight (x) 1 | 1 1 1 1 1 Average Overweight (x) . | . . 1 1 1 Largest Inventory Capacity 1 | . 1 1 1 1 Average Capacity . | . . 1 1 1 Most Carried 1 | . 1 1 1 1 Average Carried . | . . 1 1 1 Final Capacity 1 | . 1 1 1 1 Final Carried 1 | . 1 1 1 1 Class Distribution -------------------- 100% | Mutant Dominant Class ---------------- Mutant | -10/Materials Mutant | -10/Mines Mutant | -10/Exiles Mutant | -9/Mines Resources | -11 -10 -10 -10 -9 ----------- Run | Yrd Mat Min Exi Min Matter Collected 395 | 233 147 15 . . Remotely . | . . . . . Salvage Created 1299 | . 854 251 . 194 Parts 71 | . 51 10 . 10 Haulers Intercepted 1 | . 1 . . . Recyclers Shooed 1 | . 1 . . . Parts Field Recycled . | . . . . . Retrieved Matter . | . . . . . Parts Self-Destructed . | . . . . . Prevented . | . . . . . Parts Restored . | . . . . . Kills | -11 -10 -10 -10 -9 ------- Run | Yrd Mat Min Exi Min Combat Hostiles Destroyed 19 | . 15 1 . 3 Guns 10 | . 10 . . . Cannons 7 | . 3 1 . 3 AOE 1 | . 1 . . . Classes Destroyed 9 | . 9 . . . Worker 5 | . 3 . . 2 Builder 2 | . 2 . . . Tunneler 2 | . 2 . . . Hauler 1 | . 1 . . . Recycler 6 | . 2 3 . 1 Operator 1 | . 1 . . . Watcher 2 | . 2 . . . Swarmer 11 | . 11 . . . Grunt 8 | . 4 1 . 3 Best Kill Streak 6 | . 5 2 . 6 Combat Bots Only 3 | . 3 1 . 3 Max Kills in Single Turn 2 | . 2 2 . 1 Gunslinging 1 | . 1 . . . Exploded 1 | . 1 . . . Melee . | . . . . . Uniques/NPCs Destroyed . | . . . . . Combat | -11 -10 -10 -10 -9 -------- Run | Yrd Mat Min Exi Min Hostile Shots Fired 68 | . 61 . . 7 Missed 19 | . 18 . . 1 Hits 49 | . 43 . . 6 Projectile 49 | . 43 . . 6 Damage Taken 511 | . 423 . . 88 Core 387 | . 315 . . 72 Absorbed by Shields . | . . . . . Redirected to Core 267 | . 213 . . 54 Redirected to Shielding 8 | . 8 . . . Core Remaining (%) 100 | 100 . . . . Volleys Fired 213 | . 194 9 1 9 Largest 2 | . 2 2 2 2 Hottest 136 | . 136 136 136 136 Shots Fired 423 | . 385 18 2 18 Gun 97 | . 97 . . . Cannon 326 | . 288 18 2 18 Launcher . | . . . . . Special . | . . . . . Kinetic 10 | . 10 . . . Thermal 326 | . 288 18 2 18 Explosive . | . . . . . Electromagnetic 87 | . 87 . . . Robot Hit Streak 12 | . 11 3 . 12 Robot Miss Streak 4 | . 4 2 . . Penetration Max . | . . . . . Secondary Targets 1 | . 1 . . . Max Gunslinging Chain 1 | . 1 . . . Shots Hit Robots 84 | . 68 5 . 11 Core Hits 42 | . 31 4 . 7 Critical Kills 1 | . 1 . . . Critical Parts Destroyed . | . . . . . Critical Strikes 2 | . 2 . . . Meltdown 1 | . 1 . . . Corrupt 1 | . 1 . . . Melee Attacks . | . . . . . Impact . | . . . . . Slashing . | . . . . . Piercing . | . . . . . Sneak Attacks . | . . . . . Combat Hostiles . | . . . . . Follow-up Attacks . | . . . . . Damage Inflicted 1735 | . 1429 83 . 223 Guns 652 | . 652 . . . Cannons 837 | . 531 83 . 223 Explosions 242 | . 242 . . . Melee . | . . . . . Ramming 4 | . 4 . . . Kinetic 88 | . 88 . . . Thermal 1027 | . 721 83 . 223 Explosive 52 | . 52 . . . Electromagnetic 564 | . 564 . . . Impact . | . . . . . Slashing . | . . . . . Piercing . | . . . . . Highest Corruption 1 | . 1 1 1 1 Average Corruption 1 | . 1 1 1 1 Corruption Purged . | . . . . . Corruption Blocked . | . . . . . Effects 7 | . 4 3 . . Message Errors 4 | . 3 1 . . Matter Fused 2 | . . 2 . . Energy Discharges 1 | . 1 . . . Overload Shots . | . . . . . Overflow Damage 12 | . 12 . . . Projectiles 9 | . 9 . . . Explosions 3 | . 3 . . . Melee . | . . . . . Knockbacks . | . . . . . Impact . | . . . . . Kinetic . | . . . . . Secondary . | . . . . . Self-Inflicted Damage 48 | . 48 . . . Shots 2 | . 2 . . . Rammed 1 | . 1 . . . Targets Rammed 1 | . 1 . . . Kicked . | . . . . . Crushed . | . . . . . Highest Temperature 225 | . 225 . . 14 Average Temperature 39 | . 40 . . 8 Received Heat Transfer 111 | . 60 . . 51 Effects 2 | . 2 . . . Interference 2 | . 2 . . . Siege Activations . | . . . . . Martial Activations . | . . . . . Shielding Activations . | . . . . . Robots Disrupted . | . . . . . Combat Hostiles . | . . . . . Robots Corrupted 1 | . 1 . . . Combat Hostiles 1 | . 1 . . . Parts Fried 2 | . 2 . . . Impact Corruptions . | . . . . . Robots Melted 1 | . 1 . . . Combat Hostiles . | . . . . . Parts Melted 2 | . 2 . . . Heat Transferred 1717 | . 1162 148 . 407 Parts Sabotaged . | . . . . . Parts Stolen . | . . . . . Parts Stripped . | . . . . . Power Chain Reactions 2 | . 2 . . . Alert | -11 -10 -10 -10 -9 ------- Run | Yrd Mat Min Exi Min Maximum Alert Level 2 | . 2 1 . . Low Security (%) 48 | 100 33 73 . 100 Level 1 26 | . 30 26 . . Level 2 24 | . 36 . . . Level 3 . | . . . . . Level 4 . | . . . . . Level 5 . | . . . . . High Security . | . . . . . Max Security . | . . . . . Peak Influence 674 | . 674 256 . 75 Initial 256 | . . 256 . . Average 274 | . 334 183 . 60 Influence Increases 1398 | . 1172 111 . 115 Destroy 0b10 Robot/C 380 | . 300 20 . 60 Destroy 0b10 Robot/NC 95 | . 65 15 . 15 Destroy Leader 76 | . 66 . . 10 Successful Hack 4 | . 4 . . . Disable Machine 570 | . 480 60 . 30 Destroy Structure 213 | . 197 16 . . Lose Combat Pursuer 60 | . 60 . . . Influence Decreases 1333 | . 514 664 105 50 Entered New Map 507 | . . 402 105 . Time Decay 826 | . 514 262 . 50 Squads Dispatched 3 | . 3 . . . Investigation 1 | . 1 . . . Extermination . | . . . . . Reinforcement 2 | . 2 . . . Assault . | . . . . . Garrison . | . . . . . Intercept . | . . . . . Searches Triggered . | . . . . . Construction Impeded . | . . . . . Haulers Reinforced . | . . . . . Active Scanning Responses . | . . . . . Cargo Convoy Interrupts . | . . . . . Stealth | -11 -10 -10 -10 -9 --------- Run | Yrd Mat Min Exi Min Distress Signals 2 | . 2 . . . Communications Jammed . | . . . . . Distress Signals . | . . . . . Times Spotted 38 | . 35 1 . 2 Peak Tracking Total 9 | . 5 1 9 2 Tactical Retreats 3 | . 3 . . . Traps | -11 -10 -10 -10 -9 ------- Run | Yrd Mat Min Exi Min Traps Triggered 1 | . 1 . . . Indirectly . | . . . . . Trap Hack Attempts . | . . . . . Triggered . | . . . . . Disarmed . | . . . . . Reprogrammed . | . . . . . Reused . | . . . . . Traps Extracted . | . . . . . Installed . | . . . . . Triggered . | . . . . . Machines | -11 -10 -10 -10 -9 ---------- Run | Yrd Mat Min Exi Min Machines Disabled 41 | . 34 4 1 2 Max in Single Turn 2 | . 2 1 1 1 Machines Repaired . | . . . . . Machines Dismantled . | . . . . . Machines Sabotaged . | . . . . . Overloaded Fab Kills . | . . . . . Hacking | -11 -10 -10 -10 -9 --------- Run | Yrd Mat Min Exi Min Machines Accessed 4 | . 2 . 2 . Terminals 2 | . 2 . . . Fabricators . | . . . . . Repair Stations . | . . . . . Recycling Units . | . . . . . Scanalyzers . | . . . . . Garrison Access . | . . . . . Total Hacks 5 | . 3 . 2 . Successful 4 | . 2 . 2 . Failed 1 | . 1 . . . Catastrophic . | . . . . . Database Lockouts . | . . . . . Manual 3 | . 2 . 1 . Terminals 3 | . 3 . . . Fabricators . | . . . . . Repair Stations . | . . . . . Recycling Units . | . . . . . Scanalyzers . | . . . . . Garrison Access . | . . . . . Terminal Hacks 3 | . 1 . 2 . Record 1 | . . . 1 . Locate Traps 1 | . 1 . . . Proto ID Catalog 1 | . . . 1 . Fabricator Hacks . | . . . . . Repair Station Hacks . | . . . . . Recycling Unit Hacks . | . . . . . Scanalyzer . | . . . . . Garrison Access Hacks . | . . . . . Unauthorized Hacks 1 | . 1 . . . Terminals 1 | . 1 . . . Skim 1 | . 1 . . . Fabricators . | . . . . . Repair Stations . | . . . . . Recycling Units . | . . . . . Scanalyzers . | . . . . . Garrison Access . | . . . . . Data Cores Recovered . | . . . . . Used . | . . . . . Hacking Detections 2 | . 2 . . . Full Trace Events . | . . . . . Feedback Events . | . . . . . Feedback Blocked . | . . . . . Robot Schematics Acquired . | . . . . . Robots Built . | . . . . . Authchips . | . . . . . Time . | . . . . . Total Robot Build Rating . | . . . . . Part Schematics Acquired . | . . . . . Parts Built . | . . . . . Authchips . | . . . . . Time . | . . . . . Total Part Build Rating . | . . . . . Part Studies Acquired . | . . . . . Parts Repaired . | . . . . . Time . | . . . . . Parts Recycled . | . . . . . Recycled Matter . | . . . . . Retrieved Matter . | . . . . . Retrieved Components . | . . . . . Parts Scanalyzed . | . . . . . Part Schematics Acquired . | . . . . . Parts Damaged . | . . . . . Bothacking | -11 -10 -10 -10 -9 ------------ Run | Yrd Mat Min Exi Min Used RIF Installer . | . . . . . Robots Hacked . | . . . . . Non-combat . | . . . . . Combat . | . . . . . Robot Hacks Applied . | . . . . . Relay Couplers Released . | . . . . . Fabnet Peak Effective % . | . . . . . Robots Rewired . | . . . . . Allies Hacked . | . . . . . Hacks Repelled . | . . . . . Allies | -11 -10 -10 -10 -9 -------- Run | Yrd Mat Min Exi Min Total Allies 3 | . . . . 3 Largest Group 3 | . . . . 3 Highest-Rated Group 40 | . . . . 40 Highest-Rated Ally 16 | . . . . 16 Total Orders . | . . . . . Ally Attacks . | . . . . . Total Damage . | . . . . . Kills . | . . . . . Allies Corrupted . | . . . . . Allies Melted . | . . . . . Intel | -11 -10 -10 -10 -9 ------- Run | Yrd Mat Min Exi Min Active Infowar (turns) . | . . . . . Robot Analysis Total . | . . . . . Derelict Logs Recovered 2 | . . 1 . 1 Drone Launches . | . . . . . Drone Recoveries . | . . . . . Exploration | -11 -10 -10 -10 -9 ------------- Run | Yrd Mat Min Exi Min Turns Passed 2327 | 35 1413 569 199 111 Spaces Moved 1725 | 38 843 570 207 67 Core 9 | 9 . . . . Treads . | . . . . . Legs . | . . . . . Wheels 1716 | 29 843 570 207 67 Hover . | . . . . . Flight . | . . . . . Fastest Speed 50 | 50 80 95 95 95 Average Speed 93 | 78 92 95 95 95 Slowest Speed 100 | 100 95 95 95 95 Overloaded Moves . | . . . . . Propulsion Burnouts . | . . . . . Robots Hopped . | . . . . . Potential Cave-ins . | . . . . . Cave-ins Triggered . | . . . . . Exploration Rate (%) 54 | 3 95 96 58 20 Regions Visited 4 Branch Regions 3 Pre-discovered Areas 2 | . . 1 1 . Known Exits Taken . | . . . . . Unknown Exits Taken 4 | 1 1 1 1 . Scrap Searched 2 | . . 1 . 1 Spaces Dug . | . . . . . Terrain Destroyed 250 | . 234 16 . . Melee . | . . . . . Projectile 1 | . 1 . . . AOE 249 | . 233 16 . . Terrain Rammed . | . . . . . Walls Destroyed . | . . . . . Machines Disabled . | . . . . . Actions | -11 -10 -10 -10 -9 --------- Run | Yrd Mat Min Exi Min Total 2014 | 41 1090 580 207 96 Wait 41 | . 31 . . 10 Move 1721 | 37 842 569 206 67 Hop . | . . . . . Pick Up 2 | . 1 1 . . Fast Attach 14 | 4 10 . . . Attach . | . . . . . Detach . | . . . . . Swap 1 | . 1 . . . Drop 7 | . 6 1 . . Fire 213 | . 194 9 1 9 Melee . | . . . . . Ram 1 | . 1 . . . Kick . | . . . . . Crush . | . . . . . Escape Stasis . | . . . . . Rewire . | . . . . . Trap . | . . . . . Miscellaneous 14 | . 4 . . 10 Route ------- -11/Scrapyard -10/Materials (discovered 4 exits: [*Mat x3] / *Min) -10/Mines (discovered 4 exits: [*Mat x2] / *Exi / [*Sub]) -10/Exiles -9/Mines (discovered 1 exit: [*Mat]) History --------- Turn | Location | Event 8 | -11/Scrapyard | Discovered new exit (range 16) 12 | -11/Scrapyard | Upgraded with Weapon slot (x1) 36 | -11/Scrapyard | Entered Materials 68 | -10/Materials | Discovered new exit (range 13) 164 | -10/Materials | Discovered new exit (range 8) 221 | -10/Materials | Discovered new exit (range 7) 314 | -10/Materials | Build established: Mutant 405 | -10/Materials | Reached level 2 528 | -10/Materials | Discovered new exit (range 15) 863 | -10/Materials | Reached level 3 1096 | -10/Materials | Upgraded with Utility slot (x1) 1449 | -10/Materials | Entered Mines 1451 | -10/Mines | Reached level 4 1456 | -10/Mines | Received a Rocket Launcher from a helpful Derelict 1461 | -10/Mines | Met a Derelict bent on vengeance 1556 | -10/Mines | Learned location of 1 exit from Materials 1681 | -10/Mines | Discovered new exit (range 5) 1801 | -10/Mines | Discovered new exit (range 7) 1848 | -10/Mines | Discovered new exit (range 10) 1911 | -10/Mines | Learned location of Storage (-8) 2013 | -10/Mines | Deemed a non-threat by the Exiles lab entrance 2014 | -10/Mines | Discovered new exit (range 5) 2018 | -10/Mines | Entered Exiles 2041 | -10/Exiles | Met 8R-AWN 2057 | -10/Exiles | Met EX-HEX 2085 | -10/Exiles | Met EX-BIN 2096 | -10/Exiles | Aligned with FarCom system 2097 | -10/Exiles | Given EX-Vault access code 2119 | -10/Exiles | Opened EX-Vault 2144 | -10/Exiles | Warned to stay clear of 0b10 Research branches 2171 | -10/Exiles | Met EX-DEC 2174 | -10/Exiles | Learned location of Zion (-6) 2187 | -10/Exiles | Attacked by the Exiles 2210 | -10/Exiles | Discovered new exit (range 10) 2217 | -10/Exiles | Entered Mines 2219 | -9/Mines | Reached level 5 2224 | -9/Mines | Core integrity fell below 50% 2249 | -9/Mines | Discovered new exit (range 8) 2272 | -9/Mines | Assisted by bots powering up and referring to "LRC-V3" 2279 | -9/Mines | Learned location of 1 exit from Materials 2328 | -9/Mines | Self-destructed Last Messages --------------- 02249_ Found Salvage Targeting Computer. 02249_ Found Disposable Heat Sink. 02249_ Found Sensor Array. 02249_ Found 45 Matter. 02249_ EXIT=FOUND 02254_ R-06 Scavenger collects Wheel. 02260_ K-01 Serf collects debris. 02260_ K-01 Serf destroyed. 02262_ R-06 Scavenger collects Lgt. Ion Engine. 02263_ R-06 Scavenger destroyed. 02272_ Trooper 2a: "Hello LRC-V3. What is your command?" 02272_ Mercenary 2a: "Hello LRC-V3. What is your command?" 02272_ Trooper 2b: "Hello LRC-V3. What is your command?" 02279_ Acquired derelict log, extracted data. Data stored: Materials exits (x1). 02297_ Matter Pump disabled. 02307_ Laser Drill disabled. Map ----- +----------------------------------------------------+ | ?????????????????????????????????????????????????? | | ?????????????????????????????????????????????????? | | ?????????????????????????????????????????????????? | | ?????????????????????????????????????????????????? | | ?????????????????????????????????????????????????? | | ?????????????????????????????????????????????????? | | ?????????????????????????????????????????????????? | | ?????????????????????????????????????????????????? | | ?????????????????????????????????????????????????? | | ?????????????????????????????????????????????????? | | ?????????????????????????????????????????????????? | | ?????????????????????????????????????????????????? | | ?????????????????????????????????????????????????? | | ?????????????????????????????????????????????????? | | ?????????????????????????????????????????????????? | | ??????????????#??????????????????????????????????? | | ??????????????# ?????????????????????????????????? | | ?????????????? ##??????????????????????????????? | | ??????????????? #?????????????????????????????? | | ???????????????? #????????????????????????????? | | ????????????????""" #???????????????????????????? | | ??????????? ? ??""" #??????????????????????????? | | ??????????? """ ####??????????????????????? | | ?????????? ##?????????????????????? | | ?????????? ####??????????????????? | | ?????????????# @ #??????????????????? | | ??????????????# ## ## #??????????????????? | | ????????????????????## ### #??????????????????? | | ?????????????????????####??# #?????###??????????? | | ???????????????????????????# ##???# ##?????????? | | ???????????????????????????# #### #####?????? | | ???????????????????????????# ## ?????? | | ???????????????????????????## """ #????????? | | ????????????????????????????#### " " #####????? | | ???????????????????????????????## "" #????? | | ????????????????#######????????## #????? | | ???????????????## ##???????# ###### #????? | | ???????????????# [ #???????# #???????????? | | ???????????????##* ####????# ####???????????? | | ????????????????#% ## #???# #??????????????? | | ????????????????## ## ##?# #??????????????? | | ?????????????????## ## ### #??????????????? | | ??????????????????# ### % #??????????????? | | ????????????#######%#?## "%" ## ##??????????????? | | ????????????# *!%[#??## "%" ## #???????????????? | | ???????????# ##!!#???# """ ## #???????????????? | | ??????????# ?????#%[###?# ## #???????????????? | | ?????????????????#=* #### ## #???????????????? | | ?????????????????#= #### ### #???????????????? | | ?????????????????## #?####?# #???????????????? | +----------------------------------------------------+ Best States ------------- Heat Dissipation 55 Energy Generation 10 Energy Capacity 250 Matter Stores 300 Matter Capacity 300 Sight Range 16 Terrain Scan Density 10 Armor Coverage 150 Propulsion Shielding 33 Evasion (%) 44 Targeting Accuracy 5 Offensive Hacking 10 Item Schematics ----------------- None Robot Schematics ------------------ None Fabricated ------------ Nothing Repaired ---------- Nothing Studied --------- None Alien Tech Used ----------------- None Achievements -------------- None Challenges ------------ None RPGLIKE | -11 -10 -10 -10 -9 --------- Run | Yrd Mat Min Exi Min Levels Raised 4 | . 2 1 . 1 XP Earned 9453 | 3000 4203 900 350 1000 XP Spent 2600 | 500 2100 . . . Upgrades 10 | 1 9 . . . Utility Slot 1 | . 1 . . . Weapon Slot 1 | 1 . . . . Heat Dissipation 5 | . 5 . . . Inventory Capacity 1 | . 1 . . . Ranged Accuracy 2 | . 2 . . . Protomatter Created 104 | . 34 . . 70 Integrity Restored 276 | . 66 . . 210 Core 276 | . 66 . . 210 Protomatter Decayed . | . . . . . Game ------ Seed LaunchGatlingShooter Manual? 0 Play Time 00:15:43 Cumulative 275.8 hours Start 2026.09.13 @ 11:36:13 End 2026.09.13 @ 11:51:59 Sessions 1 Manual Loads 0 Difficulty Rogue Special Mode Winter2019/RPGLIKE Game No. 185 Rogue 185 Adventurer 0 Explorer 0 Win Type - Total 6 Types 2/0/2/1/0/0/0/1/0/0 Lore% 63 Gallery% 75 Achievement% 59 Wizard Run 0 Options --------- Layout 2 ASCII 0 Keyboard 0 Movement Mouse Keybinds 0 Fullscreen 1 Font 32/Cog Map View 50x44 Zoom Use 0% Tactical HUD 1 Map Filters NONE Filters NONE Steam 1 RUN: bc1efc88-f4c4-4514-8578-a63d7f5d648a